Cogmind - Beta 10.2 @@@ ROGUE MODE // 2022.01.16 @ 10:50:19 Player: Nomad Result: Destroyed by Y-45 Defender with Heavy Assault Rifle Performance ------------- Evolutions (1) 500 Regions Visited (2) 400 Robots Destroyed (22) 110 Value Destroyed (590) 590 Prototype IDs (4) 80 Alien Tech Used (0) 0 Bonus (0) 0 TOTAL SCORE: 1680 Bonus ------- None Cogmind --------- Core Integrity 0/400 Matter 300/300 Energy 238/265 System Corruption 0% Temperature Cool (45) Movement Core (300) Ox5 Location -9/Materials Parts ------- > --- POWER (2) -------- Reinforced Ion Engine > --- PROPULSION (2) --- Light Treads Light Treads > --- UTILITY (2) ------ Improved Targeting Computer > --- WEAPON (3) ------- Beam Rifle Grenade Launcher > --- INVENTORY (4) ---- High-capacity Matter Pod (200) Katana Peak State ------------ > --- POWER ------------ Reinforced Ion Engine > --- PROPULSION ------- Aluminum Leg Improved Aluminum Leg > --- UTILITY ---------- Improved Targeting Computer > --- WEAPON ----------- Spread Laser Grenade Launcher Katana > --- INVENTORY -------- Light Treads Light Treads High-capacity Matter Pod [Rating: 13] Favorites ----------- Power Ion Engine Engine Ion Engine Propulsion Light Treads Treads Light Treads Leg Aluminum Leg Wheel Compact Wheel Utility Weapon Shielding Storage Small Storage Unit Processor Improved Targeting Computer Protection Weapon Shielding Weapon Light Assault Rifle Energy Gun Small Laser Ballistic Gun Light Assault Rifle Launcher Grenade Launcher Impact Weapon Hammer Slashing Weapon Katana Build | -11 -10 -9 ------- Run | Scr Mat Mat Slots Evolved 2 | . . 2 Power 1 | . . 1 Propulsion . | . . . Utility . | . . . Weapon 1 | . . 1 Parts Attached 34 | 6 9 19 Power 4 | 1 1 2 Engine 4 | 1 1 2 Core . | . . . Reactor . | . . . Propulsion 10 | 2 2 6 Treads 4 | 2 . 2 Leg 4 | . 2 2 Wheel 2 | . . 2 Hover . | . . . Flight . | . . . Utility 6 | 1 4 1 Device . | . . . Storage 4 | 1 3 . Processor 1 | . . 1 Hackware . | . . . Protection 1 | . 1 . Artifact . | . . . Weapon 14 | 2 2 10 Energy Gun 8 | 2 1 5 Energy Cannon . | . . . Ballistic Gun 2 | . 1 1 Ballistic Cannon . | . . . Launcher 2 | . . 2 Special Weapon . | . . . Impact Weapon 1 | . . 1 Slashing Weapon 1 | . . 1 Piercing Weapon . | . . . Special Melee Weapon . | . . . Unidentified Prototypes . | . . . Parts Lost 10 | . 2 8 Power 2 | . . 2 Propulsion 1 | . . 1 Utility 1 | . . 1 Weapon 6 | . 2 4 Highest Loss Streak 2 | . 1 2 Average Slot Usage (%) 80 | . 95 66 Engine 12 | . 14 11 Treads 15 | . 23 7 Leg 5 | . 4 6 Wheel 3 | . . 7 Storage 5 | . 11 . Processor 2 | . . 4 Protection 7 | . 12 2 Energy Gun 14 | . 19 10 Ballistic Gun 7 | . 8 6 Launcher 2 | . . 3 Slashing Weapon 2 | . . 5 Naked Turns . | . . . Heaviest Build 19 | 12 13 19 Greatest Support 3 | 3 3 3 Greatest Overweight (x) 6 | 3 4 6 Average Overweight (x) 3 | 1 3 3 Largest Inventory Capacity 10 | 6 10 4 Average Capacity 4 | 5 5 4 Most Carried 6 | 4 6 4 Average Carried 3 | 3 4 2 Final Capacity 6 | 6 4 4 Final Carried 4 | 4 3 2 Class Distribution -------------------- 84% | Mutant 15% | Scavenger-Mutant Dominant Class ---------------- Mutant | -10/Materials Mutant | -9/Materials Resources | -11 -10 -9 ----------- Run | Scr Mat Mat Matter Collected 759 | 224 211 324 Remotely . | . . . Salvage Created 730 | . 222 508 Parts 57 | . 25 32 Haulers Intercepted . | . . . Recyclers Shooed . | . . . Parts Field Recycled . | . . . Retrieved Matter . | . . . Parts Self-Destructed . | . . . Prevented . | . . . Kills | -11 -10 -9 ------- Run | Scr Mat Mat Combat Hostiles Destroyed 22 | . 8 14 Melee 6 | . . 6 Guns 16 | . 8 8 Classes Destroyed 5 | . 2 3 Swarmer 9 | . 5 4 Grunt 8 | . 3 5 Brawler 1 | . . 1 Duelist 1 | . . 1 Sentry 3 | . . 3 Best Kill Streak 3 | . 3 3 Combat Bots Only 3 | . 3 3 Max Kills in Single Turn 1 | . 1 1 Gunslinging . | . . . Exploded . | . . . Melee 1 | . . 1 Uniques/NPCs Destroyed . | . . . Combat | -11 -10 -9 -------- Run | Scr Mat Mat Damage Taken 1769 | . 544 1225 Core 496 | . 88 408 Absorbed by Shields . | . . . Core Remaining (%) 82 | 100 64 . Volleys Fired 85 | . 34 51 Largest 2 | . 2 2 Hottest 130 | . 80 130 Shots Fired 146 | . 57 89 Gun 146 | . 57 89 Cannon . | . . . Launcher . | . . . Special . | . . . Kinetic 59 | . 22 37 Thermal 67 | . 15 52 Explosive . | . . . Electromagnetic 20 | . 20 . Robot Hit Streak 11 | . 10 11 Robot Miss Streak 7 | . 7 3 Penetration Max . | . . . Secondary Targets 3 | . 3 . Max Gunslinging Chain 1 | . 1 . Shots Hit Robots 110 | . 32 78 Core Hits 33 | . 11 22 Critical Hits 2 | . . 2 Critical Kills . | . . . Critical Parts Destroyed 2 | . . 2 Melee Attacks 26 | . . 26 Impact 5 | . . 5 Slashing 21 | . . 21 Piercing . | . . . Sneak Attacks . | . . . Combat Hostiles . | . . . Follow-up Attacks . | . . . Damage Inflicted 1453 | . 273 1180 Guns 812 | . 273 539 Cannons . | . . . Explosions . | . . . Melee 641 | . . 641 Ramming . | . . . Kinetic 259 | . 92 167 Thermal 461 | . 89 372 Explosive . | . . . Electromagnetic 92 | . 92 . Impact 45 | . . 45 Slashing 596 | . . 596 Piercing . | . . . Highest Corruption . | . . . Average Corruption . | . . . Corruption Purged . | . . . Overload Shots . | . . . Overflow Damage . | . . . Projectiles . | . . . Explosions . | . . . Melee . | . . . Knockbacks . | . . . Impact . | . . . Kinetic . | . . . Secondary . | . . . Self-Inflicted Damage . | . . . Shots . | . . . Rammed . | . . . Targets Rammed . | . . . Kicked . | . . . Crushed . | . . . Highest Temperature 165 | . 32 165 Average Temperature 20 | . 8 27 Received Heat Transfer 450 | . 174 276 Siege Activations . | . . . Robots Corrupted . | . . . Combat Hostiles . | . . . Parts Fried . | . . . Impact Corruptions . | . . . Robots Melted . | . . . Combat Hostiles . | . . . Parts Melted . | . . . Heat Transferred 1101 | . 200 901 Parts Sabotaged . | . . . Parts Stolen . | . . . Parts Stripped . | . . . Power Chain Reactions . | . . . Missiles Intercepted . | . . . Alert | -11 -10 -9 ------- Run | Scr Mat Mat Peak Influence 240 | . 92 240 Initial 31 | . . 31 Average 66 | . 33 104 Maximum Alert Level 1 | . . 1 Low Security (%) 97 | 100 100 94 Level 1 2 | . . 5 Level 2 . | . . . Level 3 . | . . . Level 4 . | . . . Level 5 . | . . . High Security . | . . . Max Security . | . . . Squads Dispatched 1 | . 1 . Investigation 1 | . 1 . Extermination . | . . . Reinforcement . | . . . Assault . | . . . Garrison . | . . . Intercept . | . . . Construction Impeded . | . . . Haulers Reinforced . | . . . Stealth | -11 -10 -9 --------- Run | Scr Mat Mat Distress Signals 2 | . 2 . Communications Jammed . | . . . Distress Signals . | . . . Times Spotted 39 | . 12 27 Peak Tracking Total 6 | . 4 6 Tactical Retreats 6 | . 1 5 Traps | -11 -10 -9 ------- Run | Scr Mat Mat Traps Triggered 1 | . 1 . Indirectly . | . . . Trap Hack Attempts . | . . . Triggered . | . . . Disarmed . | . . . Reprogrammed . | . . . Reused . | . . . Traps Extracted . | . . . Installed . | . . . Triggered . | . . . Machines | -11 -10 -9 ---------- Run | Scr Mat Mat Machines Disabled 1 | . . 1 Max in Single Turn 1 | . . 1 Machines Sabotaged . | . . . Garrisons Compromised . | . . . Overloaded Fab Kills . | . . . Fab Network Shutdowns . | . . . Hacking | -11 -10 -9 --------- Run | Scr Mat Mat Machines Accessed 7 | . 3 4 Terminals 5 | . 2 3 Fabricators . | . . . Repair Stations . | . . . Recycling Units 1 | . 1 . Scanalyzers 1 | . . 1 Garrison Access . | . . . Total Hacks 17 | . 12 5 Successful 15 | . 10 5 Failed 2 | . 2 . Catastrophic . | . . . Database Lockouts . | . . . Manual . | . . . Terminals 13 | . 10 3 Fabricators . | . . . Repair Stations . | . . . Recycling Units 2 | . 2 . Scanalyzers 2 | . . 2 Garrison Access . | . . . Terminal Hacks 11 | . 8 3 Record 5 | . 5 . Prototype ID Bank 2 | . 1 1 Emergency Access Points 1 | . 1 . Alert Level 1 | . . 1 Dispatch Records 1 | . . 1 Zone Layout 1 | . 1 . Fabricator Hacks . | . . . Repair Station Hacks . | . . . Recycling Unit Hacks 2 | . 2 . Recycle Component 1 | . 1 . Process 1 | . 1 . Scanalyzer 2 | . . 2 Insert Component 1 | . . 1 Analyze 1 | . . 1 Garrison Access Hacks . | . . . Unauthorized Hacks . | . . . Terminals . | . . . Fabricators . | . . . Repair Stations . | . . . Recycling Units . | . . . Scanalyzers . | . . . Garrison Access . | . . . Data Cores Recovered . | . . . Used . | . . . Hacking Detections 5 | . 3 2 Full Trace Events . | . . . Feedback Events . | . . . Feedback Blocked . | . . . Robot Schematics Acquired . | . . . Robots Built . | . . . Matter . | . . . Time . | . . . Total Robot Build Rating . | . . . Part Schematics Acquired 1 | . . 1 Parts Built . | . . . Matter . | . . . Time . | . . . Total Part Build Rating . | . . . Parts Repaired . | . . . Time . | . . . Parts Recycled 1 | . 1 . Recycled Matter . | . . . Retrieved Matter . | . . . Retrieved Components . | . . . Parts Scanalyzed 1 | . . 1 Part Schematics Acquired 1 | . . 1 Parts Damaged . | . . . Bothacking | -11 -10 -9 ------------ Run | Scr Mat Mat Used RIF Installer . | . . . Robots Hacked . | . . . Non-combat . | . . . Combat . | . . . Robot Hacks Applied . | . . . Relay Couplers Released . | . . . Robots Rewired . | . . . Allies Hacked . | . . . Hacks Repelled . | . . . Allies | -11 -10 -9 -------- Run | Scr Mat Mat Total Allies . | . . . Largest Group . | . . . Highest-Rated Group . | . . . Highest-Rated Ally . | . . . Total Orders . | . . . Ally Attacks . | . . . Total Damage . | . . . Kills . | . . . Allies Corrupted . | . . . Allies Melted . | . . . Intel | -11 -10 -9 ------- Run | Scr Mat Mat Robot Analysis Total . | . . . Derelict Logs Recovered . | . . . Drone Launches . | . . . Drone Recoveries . | . . . Exploration | -11 -10 -9 ------------- Run | Scr Mat Mat Turns Passed 2258 | 113 1049 1096 Spaces Moved 821 | 68 426 327 Core 821 | 68 426 327 Treads . | . . . Legs . | . . . Wheels . | . . . Hover . | . . . Flight . | . . . Fastest Speed 50 | 50 150 50 Average Speed 220 | 145 218 237 Slowest Speed 350 | 200 250 350 Overloaded Moves . | . . . Propulsion Burnouts . | . . . Robots Hopped . | . . . Cave-ins Triggered . | . . . Exploration Rate (%) 31 | 4 63 26 Regions Visited 2 Branch Regions . Pre-discovered Areas . | . . . Known Exits Taken . | . . . Unknown Exits Taken 2 | 1 1 . Scrap Searched . | . . . Spaces Dug . | . . . Terrain Destroyed . | . . . Melee . | . . . Projectile . | . . . AOE . | . . . Terrain Rammed . | . . . Walls Destroyed . | . . . Machines Disabled . | . . . Actions | -11 -10 -9 --------- Run | Scr Mat Mat Total 1112 | 83 494 535 Wait 83 | . 9 74 Move 819 | 67 425 327 Hop . | . . . Pick Up 41 | 10 9 22 Fast Attach 1 | . 1 . Attach 30 | 6 5 19 Detach 1 | . . 1 Swap 3 | . 3 . Drop 23 | . 8 15 Fire 85 | . 34 51 Melee 26 | . . 26 Ram . | . . . Kick . | . . . Crush . | . . . Escape Stasis . | . . . Rewire . | . . . Trap . | . . . Miscellaneous . | . . . Route ------- -11/Scrapyard -10/Materials (discovered 3 exits: *Mat x2 / [*Min]) -9/Materials (discovered 1 exit: [*Min]) History --------- Turn | Location | Event 19 | -11/Scrapyard | Discovered new exit (range 15) 114 | -11/Scrapyard | Entered Materials 326 | -10/Materials | Build established: Mutant 418 | -10/Materials | Discovered new exit (range 15) 686 | -10/Materials | Discovered new exit (range 14) 882 | -10/Materials | Discovered new exit (range 3) 1163 | -10/Materials | Entered another Materials area 1163 | -9/Materials | Evolved 2 slots: Power x1, Weapon x1 1436 | -9/Materials | Core integrity fell below 50% 1778 | -9/Materials | Core integrity fell below 20% 1833 | -9/Materials | Build established: Scavenger-Mutant 2059 | -9/Materials | Discovered new exit (range 5) 2170 | -9/Materials | Build established: Mutant 2259 | -9/Materials | Destroyed by Y-45 Defender with Heavy Assault Rifle Last Messages --------------- EXIT=FOUND K-01 Serf cleans the Terminal. Processing Tank disabled. K-01 Serf cleans the Terminal. Connecting with Terminal... >>Alert(Check) Current Alert Level: Low Security G-34 Mercenary overheating. G-34 Mercenary destroyed. K-01 Serf collects debris. Acquired 40 matter. U-05 Engineer builds a Door. K-01 Serf collects debris. G-34 Mercenary destroyed. U-05 Engineer builds a Door. R-06 Scavenger collects Sml. Laser. R-06 Scavenger collects Heat Sink. R-06 Scavenger collects Aluminum Leg. R-06 Scavenger collects Sml. Laser. Beam Rifle destroyed. Map ----- +----------------------------------------------------+ | ########????????????????????????????????????????? | | #???????????????????????????????????????????????? | | #???????????????????????????????????????????????? | | #???????????????????????????????????????????????? | | #???????????????????????????????????????????????? | | #???????????????????????????????????????????????? | | #???????????????????????????????????????????????? | | #???????????????????????????????????????????????? | | #???????????????????????????????????????????????? | | #???????????????????????????????????????????????? | | #???????????????????????????????????????????????? | | #???????????????????????????????????????????????? | | #???????????????????????????????????????????????? | | ##??????????????????????????????????????????????? | | #??????????????????????????????????????????????? | | #??????????????????????????????????????????????? | | #??????????????????????????????????????????????? | | #????????????????????????????#??? ????????????? | | #??????????????????????????? ###+##????????????? | | ###??????????????????????????? ?????????????? | | #####???????????????????????? ???????????????? | | #???????????????????????? ????????????????? | | #??????????????????????? ??????????????????? | | """ #?????????????????######/######??????????????? | | """ #?????????????????# sY #??????????????? | | """ #?????????????????# @s #??????????????? | | ??????????????????# s #??????????????? | | #+########### ######### #??????????????? | | %+% #??????????????? | | # ##??????######## #?????????????? | | # ##########?????# a #???????????? | | # + [ #????###########+##??????#### | | # ###### [ ###### ### ######## | | # #????# [ # | | # #????# """ # < | | # #????# """ # "T" """ | | # #????# """ # # # "" | | # #????# """ # # "!"!" # """ ##### | | # #????# """ + #""!"!""# """ #???? | | # #????# # ######### """ +???? | | ? ?????########## ??? #???? | | ?#?????????????# #???? | | ???????????????# #???? | | ???????????????# #???? | | ???????????????# #???? | | ???????????????# ##+#### #???? | | ???????????????###+#################?????? ?????? | | ?????????????????????????????????????????????????? | | ?????????????????????????????????????????????????? | | ?????????????????????????????????????????????????? | +----------------------------------------------------+ Best States ------------- Heat Dissipation 28 Energy Generation 5 Energy Capacity 275 Matter Stores 300 Matter Capacity 300 Sight Range 16 Terrain Scan Density 10 Weapon Shielding 33 Evasion (%) 50 Item Schematics ----------------- Hcp. Matter Pod | -9/Materials | Scanalyzed Robot Schematics ------------------ None Fabricated ------------ Nothing Alien Tech Used ----------------- None Achievements -------------- Crack Shot Challenges ------------ None Game ------ Seed AlertKineticThrower Manual? 0 Play Time 00:24:09 Cumulative 1.6 hours Start 2022.01.16 @ 02:47:18 End 2022.01.16 @ 10:50:19 Sessions 3 Manual Loads 0 Difficulty Rogue Special Mode None Game No. 4 Rogue 4 Adventurer 0 Explorer 0 Win Type - Total 0 Types 0/0/0/0/0/0/0/0/0 Lore% 1 Gallery% 3 Achievement% 1 Wizard Run 0 Options --------- ASCII 0 Keyboard 0 Movement Numpad Keybinds 0 Fullscreen 1 Font 18/SmallcapsGlow Map View 76x50 Tactical HUD 0 Map Filters NONE Filters NONE Steam 1 RUN: dcb06546-ac66-4ca6-be45-212f7db8cda7